bitfinex-derivatives/quotes_BTCF0:USTF0_20241223
["timestamp","ask_amount","ask_price","bid_price","bid_amount"]
[1734972925248,0.49577535,94269.0,94242.0,0.7213]
[1734972925457,0.13004536,94260.0,94237.0,0.053128]
[1734972925754,0.053123,94248.0,94234.0,0.05313]
[1734972925948,0.053123,94248.0,94230.0,0.00159183]
[1734972925949,0.053127,94239.0,94230.0,0.00159183]
[1734972926248,0.3608,94234.0,94230.0,0.00159183]
[1734972926746,0.053132,94232.0,94230.0,0.00159183]
[1734972926946,0.3608,94234.0,94204.0,0.3608]
[1734972927158,0.3608,94234.0,94193.0,0.3608]
[1734972927159,0.3608,94208.0,94193.0,0.3608]
[1734972928054,0.3608,94223.0,94217.0,0.053139]
[1734972929854,0.3608,94223.0,94214.0,0.3608]
[1734972929855,0.3608,94223.0,94219.0,0.053138]
[1734972930561,0.3608,94223.0,94201.0,0.3608]
[1734972930751,0.053141,94216.0,94201.0,0.053149]
[1734972931757,0.3608,94215.0,94201.0,0.053149]
[1734972932059,0.3608,94215.0,94192.0,0.053154]
[1734972932244,0.3608,94215.0,94181.0,0.3608]
[1734972932447,0.053148,94203.0,94183.0,0.053158]
[1734972932851,0.3608,94207.0,94190.0,0.3608]
[1734972933054,0.3608,94215.0,94198.0,0.3608]
[1734972933257,0.3608,94215.0,94190.0,0.86127496]
[1734972933258,0.1954,94253.0,94214.0,0.3608]
[1734972933460,0.36239236,94255.0,94241.0,0.3608]
[1734972933461,0.00159236,94255.0,94241.0,0.3608]
[1734972933761,0.00159236,94255.0,94250.0,0.3608]
[1734972934149,0.00159236,94255.0,94246.0,0.053123]
[1734972934457,0.00159236,94255.0,94249.0,0.3608]
[1734972934850,0.00159236,94255.0,94230.0,0.3608]
[1734972935049,0.3608,94244.0,94230.0,0.3608]
[1734972935254,0.053119,94254.0,94230.0,0.3608]
[1734972935457,0.00159236,94255.0,94222.0,0.00159192]
[1734972935458,0.00159236,94255.0,94241.0,0.053126]
[1734972935652,0.00159236,94255.0,94242.0,0.053125]
[1734972935847,0.00159236,94255.0,94238.0,0.3608]
[1734972936147,0.00159236,94255.0,94249.0,0.3608]
[1734972936656,0.00159236,94255.0,94238.0,0.3608]
[1734972936847,0.053128,94239.0,94222.0,0.00159192]
[1734972937155,0.3608,94248.0,94229.0,0.3608]
[1734972938046,0.00159236,94255.0,94250.0,0.053121]
[1734972938357,0.00159236,94255.0,94251.0,1.5]
[1734972940467,0.00159236,94255.0,94247.0,0.3608]
[1734972941056,0.00159236,94255.0,94248.0,1.5]
[1734972941461,0.00159236,94255.0,94254.0,0.053119]
[1734972941761,0.053114,94263.0,94255.0,0.053118]
[1734972942060,0.053114,94263.0,94262.0,0.3608]
[1734972943153,0.00159151,94294.0,94284.0,0.053102]
[1734972943154,0.0531,94288.0,94284.0,0.053102]
[1734972943359,0.3608,94302.0,94284.0,0.3608]
[1734972943560,0.3608,94302.0,94278.0,0.3608]
[1734972943561,0.053105,94279.0,94278.0,0.3608]
[1734972943862,0.053105,94279.0,94278.0,1.8608]
[1734972944169,0.053105,94279.0,94278.0,0.3608]
[1734972945654,0.053105,94279.0,94265.0,0.00159111]
[1734972945655,0.3608,94279.0,94265.0,0.00159111]
[1734972945860,0.053107,94275.0,94265.0,0.00159111]
[1734972946460,0.1975,94278.0,94269.0,0.05311]
[1734972946656,0.1975,94278.0,94265.0,0.00159111]
[1734972946860,0.053106,94277.0,94265.0,0.00159111]
[1734972947061,0.1975,94278.0,94265.0,0.00159111]
[1734972947366,0.2023,94274.0,94265.0,0.00159111]
[1734972947673,0.0121514,94293.0,94273.0,0.3608]
[1734972947972,0.1,94300.0,94286.0,0.3608]
[1734972948367,0.053098,94292.0,94286.0,0.3608]
[1734972949062,0.413898,94292.0,94276.0,0.053106]
[1734972949575,0.3608,94292.0,94281.0,0.3608]
[1734972950155,0.413898,94292.0,94281.0,0.3608]
[1734972950357,0.053098,94291.0,94281.0,0.3608]
[1734972950567,0.053099,94290.0,94281.0,0.3608]
[1734972950764,0.3608,94292.0,94281.0,0.3608]
[1734972950765,0.053101,94287.0,94281.0,0.3608]
[1734972950968,0.3608,94292.0,94281.0,0.3608]
[1734972951171,0.053101,94286.0,94281.0,0.3608]
[1734972951562,0.3608,94292.0,94272.0,0.3608]
[1734972951863,0.053103,94282.0,94272.0,0.3608]
[1734972952568,0.053104,94280.0,94272.0,0.3608]
[1734972953164,0.053099,94290.0,94276.0,0.053106]
[1734972953364,0.053099,94290.0,94283.0,0.3608]
[1734972953663,0.3608,94292.0,94283.0,0.3608]
[1734972953970,0.053102,94285.0,94283.0,0.3608]
[1734972956165,0.3608,94284.0,94272.0,0.3608]
[1734972956367,0.053108,94274.0,94272.0,0.3608]
[1734972957869,0.1871,94283.0,94272.0,0.3608]
[1734972958275,0.003,94274.0,94272.0,0.3608]
[1734972959566,0.056108,94274.0,94263.0,0.37294773]
[1734972959766,0.056108,94274.0,94267.0,0.053111]
[1734972959968,0.053108,94274.0,94267.0,0.053111]
[1734972960278,0.053108,94274.0,94268.0,1.5]
[1734972960470,0.053104,94282.0,94269.0,0.05311]
[1734972960669,0.1901,94283.0,94269.0,0.05311]
[1734972960877,0.1901,94283.0,94272.0,0.3608]
[1734972960878,0.002,94274.0,94272.0,0.3608]
[1734972961563,0.003,94282.0,94272.0,0.3608]
[1734972962276,0.3608,94273.0,94268.0,0.00076]
[1734972962478,0.1955,94272.0,94265.0,0.05470311]
[1734972962777,0.1955,94272.0,94246.0,0.053123]
[1734972962979,0.1955,94272.0,94236.0,1.5]
[1734972962980,0.3608,94257.0,94240.0,0.053127]
[1734972963176,0.3608,94247.0,94240.0,0.053127]
[1734972963365,0.3608,94247.0,94236.0,1.5]
[1734972963366,0.1896,94246.0,94236.0,0.00076]
[1734972963566,0.1896,94246.0,94233.0,0.413931]
[1734972963871,0.053111,94268.0,94233.0,0.413931]
[1734972963872,0.3608,94264.0,94243.0,0.3608]
[1734972964069,0.23299345,94272.0,94263.0,0.3608]
[1734972964269,0.22105839,94272.0,94271.0,0.413909]
[1734972964768,0.22105839,94272.0,94271.0,1.913909]
[1734972965182,0.58185839,94287.0,94271.0,1.8608]
[1734972965371,0.58185839,94287.0,94277.0,0.053106]
[1734972965571,0.58185839,94287.0,94271.0,1.86148]
[1734972965780,0.58185839,94287.0,94271.0,1.8608]
[1734972966073,0.1886,94286.0,94271.0,1.8608]
[1734972966480,0.1886,94286.0,94280.0,0.053104]
[1734972967176,0.241701,94286.0,94271.0,1.8608]
[1734972967480,0.12986606,94281.0,94271.0,0.3608]
[1734972967870,0.3608,94276.0,94259.0,0.0124893]
[1734972968173,0.3608,94276.0,94270.0,0.05311]
[1734972968379,0.3608,94276.0,94274.0,0.053108]
[1734972968876,0.3608,94276.0,94261.0,0.3608]
[1734972969069,0.3608,94268.0,94267.0,0.053112]
[1734972969277,0.3608,94268.0,94263.0,0.053114]
[1734972970483,0.3608,94268.0,94256.0,1.50068]
[1734972970681,0.3608,94268.0,94266.0,0.053112]
[1734972971184,0.3608,94268.0,94256.0,1.5]
[1734972971486,0.3628,94268.0,94256.0,1.5]
[1734972971785,0.3628,94268.0,94257.0,0.053117]
[1734972972076,0.3628,94268.0,94266.0,0.053112]
[1734972972289,0.3618,94268.0,94266.0,0.053112]
[1734972972473,0.3618,94268.0,94259.0,0.053116]
[1734972972667,0.3618,94268.0,94263.0,0.053114]
[1734972973975,0.1876,94267.0,94256.0,0.00068]
[1734972974176,0.3608,94257.0,94246.0,0.01200632]
[1734972974371,0.1897,94256.0,94240.0,0.3608]
[1734972974677,0.1897,94256.0,94245.0,0.053124]
[1734972974886,0.002,94268.0,94267.0,0.053112]
[1734972975085,0.002,94268.0,94267.0,0.413912]
[1734972975382,0.3765,94287.0,94267.0,0.3608]
[1734972975583,0.3765,94287.0,94282.0,0.053103]
[1734972976081,0.3887728,94287.0,94282.0,0.053103]
[1734972976283,0.3887728,94287.0,94278.0,0.3608]
[1734972976484,0.2019728,94287.0,94286.0,0.053101]
[1734972976685,0.2019728,94287.0,94278.0,0.413905]
[1734972978577,0.2049728,94287.0,94278.0,0.3608]
[1734972978781,0.3608,94279.0,94268.0,0.00068]
[1734972978983,0.413905,94279.0,94257.0,0.36239138]
[1734972979186,0.413905,94279.0,94264.0,0.053113]
[1734972979579,0.3608,94279.0,94257.0,0.3608]
[1734972979781,0.413906,94279.0,94263.0,0.053114]
[1734972980389,0.3608,94271.0,94257.0,0.3618]
[1734972980587,0.3608,94271.0,94264.0,0.053113]
[1734972980782,0.3608,94271.0,94255.0,0.01226176]
[1734972980986,0.36336001,94279.0,94252.0,0.05312]
[1734972980987,0.3608,94263.0,94252.0,0.05312]
[1734972981382,0.1891,94262.0,94252.0,0.05312]
[1734972981585,0.1891,94262.0,94245.0,0.053124]
[1734972981883,0.3608,94250.0,94245.0,0.06529531]
[1734972982085,0.3608,94250.0,94245.0,0.01217131]
[1734972982293,0.413922,94250.0,94239.0,0.00076]
[1734972982476,0.3608,94254.0,94238.0,0.00159154]
[1734972983181,0.01201853,94254.0,94243.0,0.3608]
[1734972983486,0.22105839,94245.0,94242.0,0.3608]
[1734972983990,0.22105839,94245.0,94243.0,0.053125]
[1734972984692,0.22105839,94245.0,94238.0,0.00159154]
[1734972984991,0.58185839,94248.0,94241.0,0.053126]
[1734972985190,0.58185839,94248.0,94238.0,0.00159154]
[1734972985191,0.22105839,94248.0,94238.0,0.00159154]
[1734972985387,0.3608,94246.0,94238.0,0.00159154]
[1734972985690,0.3608,94246.0,94227.0,0.3608]
[1734972985691,0.006,94245.0,94227.0,0.3608]
[1734972985989,0.006,94245.0,94212.0,0.053143]
[1734972985990,0.413934,94228.0,94212.0,0.053143]
[1734972986294,0.3608,94218.0,94212.0,0.053143]
[1734972986592,0.1937,94227.0,94215.0,0.053141]
[1734972986782,0.00060001,94228.0,94219.0,0.3608]
[1734972986978,0.3608,94239.0,94219.0,0.3608]
[1734972987184,0.3608,94239.0,94233.0,0.053131]
[1734972987794,0.3608,94239.0,94225.0,0.053135]
[1734972987995,0.3608,94239.0,94219.0,0.3608]
[1734972987996,0.3608,94230.0,94219.0,0.3608]
[1734972988180,0.3608,94230.0,94220.0,1.5]
[1734972988497,0.3608,94230.0,94224.0,0.053136]
[1734972988685,0.3608,94230.0,94229.0,0.053133]
[1734972988888,0.002,94239.0,94229.0,0.053133]
[1734972989185,0.002,94239.0,94227.0,0.3608]
[1734972989380,0.002,94230.0,94227.0,0.3608]
[1734972989578,0.002,94230.0,94220.0,1.50076]
[1734972989777,0.002,94230.0,94220.0,1.5]
[1734972989981,0.053129,94237.0,94229.0,0.001]
[1734972990178,0.3608,94232.0,94229.0,0.001]
[1734972990388,0.053133,94231.0,94229.0,0.001]
[1734972990582,0.3608,94232.0,94208.0,0.053145]
[1734972990583,0.002,94230.0,94208.0,0.053145]
[1734972990784,0.3608,94224.0,94209.0,0.413944]
[1734972991095,0.3608,94224.0,94210.0,1.5]
[1734972991388,0.3608,94213.0,94210.0,1.5]
[1734972991597,0.053141,94215.0,94210.0,1.5]
[1734972991787,0.3608,94212.0,94210.0,1.5]
[1734972991984,0.3608,94212.0,94193.0,0.05474517]
[1734972992191,0.12986606,94203.0,94193.0,0.05474517]
[1734972992392,0.053149,94202.0,94193.0,0.00159217]
[1734972992589,0.3608,94195.0,94193.0,0.00159217]
[1734972993498,0.3608,94195.0,94193.0,0.00459217]
[1734972993891,0.1851,94194.0,94193.0,0.00459217]
[1734972994093,0.1851,94194.0,94175.0,0.053164]
[1734972994094,0.05316,94182.0,94172.0,0.01195397]
[1734972994289,0.12986606,94182.0,94168.0,1.50072]
[1734972994499,0.053159,94184.0,94169.0,0.053167]
[1734972994695,0.3608,94187.0,94168.0,1.50068]
[1734972994696,0.053165,94173.0,94168.0,1.50068]
[1734972994994,0.3608,94179.0,94168.0,1.50068]
[1734972994995,0.3608,94169.0,94168.0,1.5]
[1734972995389,0.3608,94169.0,94153.0,0.00159306]
[1734972995592,0.053163,94177.0,94160.0,0.413972]
[1734972995894,0.053163,94177.0,94161.0,1.553171]
[1734972996803,0.055163,94177.0,94167.0,0.3608]
[1734972997189,0.00056001,94190.0,94189.0,0.053156]
[1734972997500,0.1837,94205.0,94192.0,0.053154]
[1734972997699,0.1837,94205.0,94184.0,0.3608]
[1734972997700,0.36239306,94201.0,94185.0,0.053158]
[1734972998001,0.41554206,94201.0,94200.0,1.5]
[1734972998304,0.58644206,94201.0,94200.0,1.5]
[1734972998497,0.53329306,94201.0,94175.0,0.053164]
[1734972998695,0.053156,94190.0,94176.0,0.053163]
[1734972998893,0.3608,94193.0,94182.0,0.053159]
[1734972999096,0.37003306,94201.0,94182.0,0.3608]
[1734972999404,0.01259306,94201.0,94199.0,0.05315]
[1734972999790,0.00359306,94201.0,94194.0,0.3608]
[1734973000190,0.00359306,94201.0,94191.0,0.053154]
[1734973000895,0.053152,94197.0,94183.0,0.053159]
[1734973001095,0.053154,94193.0,94182.0,0.3608]
[1734973001290,0.053154,94193.0,94184.0,1.5]
[1734973001694,0.3608,94196.0,94184.0,1.5]
[1734973001904,0.053156,94190.0,94184.0,1.5]
[1734973002105,0.3608,94188.0,94176.0,0.053163]
[1734973002307,0.413957,94188.0,94176.0,0.053163]
[1734973002605,0.413957,94188.0,94176.0,1.553163]
[1734973003196,0.3608,94188.0,94176.0,1.5]
[1734973003403,0.053159,94183.0,94176.0,1.5]
[1734973003906,0.181,94187.0,94176.0,1.5]
[1734973004104,0.3608,94180.0,94169.0,0.053167]
[1734973004496,0.3608,94180.0,94172.0,0.053165]
[1734973004706,0.234157,94187.0,94173.0,1.5]
[1734973004896,0.181,94187.0,94173.0,1.5]
[1734973005096,0.053161,94181.0,94173.0,1.5]
[1734973005394,0.3608,94180.0,94173.0,1.5]
[1734973005607,0.3608,94180.0,94159.0,0.01152631]
[1734973005608,0.3608,94177.0,94159.0,0.01152631]
[1734973005806,0.3608,94177.0,94154.0,0.3608]
[1734973005807,0.053171,94163.0,94154.0,0.3608]
[1734973006002,0.053174,94157.0,94154.0,0.3608]
[1734973006204,0.053176,94154.0,94153.0,0.00159306]
[1734973007098,0.053182,94144.0,94131.0,0.3608]
[1734973007297,0.3608,94147.0,94131.0,0.67239745]
[1734973007500,0.3608,94170.0,94167.0,0.053168]
[1734973007702,0.338888,94169.0,94161.0,0.3608]
[1734973007911,0.001,94163.0,94161.0,0.3608]
[1734973008104,0.001,94163.0,94156.0,0.053174]
[1734973008507,0.001,94163.0,94151.0,0.413977]
[1734973008803,0.053171,94163.0,94147.0,0.01180386]
[1734973008994,0.053171,94163.0,94149.0,0.053178]
[1734973009199,0.17,94162.0,94153.0,0.3608]
[1734973009398,0.17,94162.0,94144.0,0.37254438]
[1734973009598,0.002,94163.0,94162.0,0.053171]
[1734973010003,0.001,94168.0,94162.0,0.053171]
[1734973010510,0.28572,94169.0,94161.0,0.3608]
[1734973011208,0.053169,94166.0,94163.0,1.5]
[1734973012302,0.29472,94169.0,94163.0,1.5]
[1734973012509,0.29472,94169.0,94165.0,0.053169]
[1734973012709,0.006,94166.0,94163.0,1.5]
[1734973013302,0.006,94166.0,94165.0,0.053169]
[1734973013609,0.006,94166.0,94165.0,0.413969]
[1734973014308,0.009,94166.0,94165.0,0.413969]
[1734973014812,0.006,94166.0,94165.0,0.413969]
[1734973015006,0.05317,94164.0,94163.0,0.00068]
[1734973015205,0.05317,94164.0,94158.0,0.053173]
[1734973015715,0.172,94165.0,94157.0,0.3608]
[1734973015907,0.053178,94151.0,94149.0,0.00068]
[1734973016101,0.053182,94143.0,94142.0,0.3608]
[1734973016310,0.053182,94143.0,94142.0,0.36152]
[1734973016613,0.053182,94143.0,94127.0,0.18576809]
[1734973016810,0.053187,94134.0,94127.0,0.18576809]
[1734973017000,0.053189,94131.0,94127.0,0.18576809]
[1734973017203,0.05319,94130.0,94127.0,0.18576809]
[1734973017401,0.05319,94130.0,94122.0,1.5]
[1734973017601,0.3608,94134.0,94129.0,0.053189]
[1734973017803,0.3608,94134.0,94122.0,1.553193]
[1734973018005,0.3618,94134.0,94122.0,1.553193]
[1734973018202,0.053188,94133.0,94122.0,1.553193]
[1734973018406,0.053191,94127.0,94122.0,1.5]
[1734973018607,0.3608,94125.0,94115.0,0.053197]
[1734973018802,0.3608,94125.0,94117.0,0.053196]
[1734973019012,0.3608,94125.0,94119.0,0.053195]
[1734973019208,0.3608,94125.0,94120.0,0.053195]
[1734973019410,0.005,94130.0,94122.0,0.053194]
[1734973019612,0.3618,94134.0,94121.0,0.3608]
[1734973019613,0.3618,94134.0,94125.0,0.053192]
[1734973019809,0.3618,94134.0,94121.0,0.3608]
[1734973019810,0.053188,94133.0,94121.0,0.3608]
[1734973020115,0.1589,94133.0,94120.0,0.053195]
[1734973020300,0.053193,94124.0,94113.0,0.3608]
[1734973020503,0.001,94127.0,94113.0,0.3608]
[1734973020709,0.001,94127.0,94119.0,0.053195]
[1734973021215,0.05319,94129.0,94119.0,0.053195]
[1734973021411,0.1599,94133.0,94120.0,1.5]
[1734973021610,0.001,94133.0,94132.0,0.053188]
[1734973021804,0.12670666,94138.0,94132.0,0.053188]
[1734973021805,0.12670666,94138.0,94137.0,0.053185]
[1734973022010,0.12670666,94138.0,94137.0,0.413985]
[1734973022213,0.12670666,94138.0,94137.0,0.3608]
[1734973022410,0.12670666,94138.0,94135.0,0.053186]
[1734973022710,0.12670666,94138.0,94136.0,0.053186]
[1734973022913,0.12670666,94138.0,94137.0,0.3608]
[1734973023306,0.1545,94152.0,94137.0,0.3608]
[1734973023307,0.1545,94152.0,94138.0,0.053185]
[1734973023506,0.3608,94147.0,94139.0,0.053184]
[1734973023815,0.053182,94143.0,94140.0,0.053183]
[1734973024013,0.053182,94143.0,94137.0,0.001]
[1734973024318,0.053182,94143.0,94138.0,0.053185]
[1734973024719,0.1545,94152.0,94137.0,0.001]
[1734973024910,0.053183,94142.0,94137.0,0.001]
[1734973025208,0.3608,94138.0,94137.0,0.001]
[1734973025412,0.00159388,94153.0,94152.0,0.053177]
[1734973025606,0.12670666,94154.0,94152.0,0.053177]
[1734973025607,0.12670666,94154.0,94152.0,0.413977]
[1734973025816,0.12670666,94154.0,94153.0,0.3608]
[1734973026014,0.15838332,94157.0,94156.0,0.053175]
[1734973026413,0.15838332,94157.0,94152.0,0.36148]
[1734973026414,0.15838332,94157.0,94152.0,0.01142249]
[1734973026618,0.15838332,94157.0,94148.0,0.053179]
[1734973026619,0.053177,94152.0,94148.0,0.053179]
[1734973026916,0.3608,94156.0,94142.0,0.053182]
[1734973027117,0.3608,94144.0,94142.0,0.053182]
[1734973027420,0.001,94153.0,94148.0,0.053179]
[1734973027811,0.054176,94153.0,94130.0,0.3608]
[1734973028113,0.3608,94156.0,94148.0,0.001]
[1734973028317,0.413975,94156.0,94148.0,0.001]
[1734973028615,0.002,94153.0,94148.0,0.001]
[1734973028819,0.053178,94151.0,94148.0,0.001]
[1734973029005,0.053178,94150.0,94148.0,0.001]
[1734973029207,0.77733501,94156.0,94148.0,0.001]
[1734973029530,0.776775,94156.0,94148.0,0.001]
[1734973029815,0.12674663,94152.0,94149.0,0.053178]
[1734973030020,0.12674663,94152.0,94146.0,0.05318]
[1734973030317,0.12674663,94152.0,94149.0,0.053178]
[1734973030722,0.002,94153.0,94148.0,0.001]
[1734973031216,0.002,94152.0,94148.0,0.001]
[1734973031423,0.053179,94149.0,94139.0,0.053184]
[1734973031618,0.3608,94140.0,94139.0,0.053184]
[1734973031815,0.3608,94140.0,94130.0,0.3608]
[1734973032021,0.3608,94140.0,94133.0,0.053187]
[1734973032222,0.413984,94140.0,94125.0,0.053192]
[1734973032519,0.413984,94140.0,94124.0,0.053192]
[1734973032520,0.3608,94131.0,94124.0,0.053192]
[1734973032712,0.3608,94131.0,94110.0,0.00159364]
[1734973032917,0.3608,94122.0,94111.0,0.0532]
[1734973033217,0.3608,94114.0,94110.0,0.00159364]
[1734973034516,0.053206,94101.0,94100.0,0.1]
[1734973034828,0.3608,94101.0,94088.0,0.24769079]
[1734973035025,0.05321,94095.0,94088.0,0.24769079]
[1734973035211,0.05321,94095.0,94083.0,0.053215]
[1734973035417,0.3608,94099.0,94083.0,0.053215]
[1734973035418,0.3608,94087.0,94083.0,0.053215]
[1734973035816,0.3608,94087.0,94071.0,0.3608]
[1734973036123,0.3608,94087.0,94072.0,1.5]
[1734973036329,0.053218,94080.0,94072.0,1.5]
[1734973036527,0.3608,94087.0,94071.0,0.3608]
[1734973036528,0.3608,94078.0,94071.0,0.3608]
[1734973036723,0.3608,94087.0,94071.0,0.3608]
[1734973036922,0.3608,94087.0,94085.0,0.053214]
[1734973037123,0.15869208,94088.0,94087.0,0.053214]
[1734973037432,0.19007058,94094.0,94093.0,0.05321]
[1734973037725,0.19007058,94094.0,94093.0,0.41401]
[1734973038330,0.12675272,94095.0,94094.0,0.05321]
[1734973038720,0.12675272,94095.0,94093.0,0.3608]
[1734973039028,0.13035884,94110.0,94093.0,0.3608]
[1734973039029,0.001,94094.0,94093.0,0.3608]
[1734973039231,0.001,94094.0,94093.0,0.42548518]
[1734973040323,0.3608,94115.0,94093.0,0.37227518]
[1734973040522,0.053171,94163.0,94114.0,0.3608]
[1734973040523,0.3608,94134.0,94114.0,0.3608]
[1734973040731,0.0118685,94140.0,94138.0,0.053184]
[1734973041330,0.0118685,94140.0,94139.0,1.5]
[1734973041521,0.1654,94141.0,94139.0,1.5]
[1734973041918,0.009,94140.0,94139.0,1.5]
[1734973042325,0.25341333,94143.0,94142.0,0.053182]
[1734973042523,0.25341333,94143.0,94142.0,0.413982]
[1734973043430,0.053163,94177.0,94143.0,0.3605]
[1734973043620,0.1641,94179.0,94177.0,0.053163]
[1734973043826,0.1641,94179.0,94178.0,0.3608]
[1734973044325,0.22174007,94185.0,94184.0,0.053159]
[1734973045327,0.053152,94196.0,94186.0,0.053157]
[1734973045531,0.3608,94198.0,94186.0,0.053157]
[1734973045724,0.3608,94198.0,94193.0,0.053153]
[1734973045922,0.3608,94198.0,94197.0,0.053151]
[1734973046322,0.1641,94203.0,94199.0,0.05315]
[1734973046527,0.3608,94207.0,94199.0,0.05315]
[1734973046928,0.00159295,94215.0,94199.0,0.05315]
[1734973047240,0.00159295,94215.0,94199.0,1.91395]
[1734973048128,0.108,94200.0,94199.0,1.91395]
[1734973048734,0.112,94200.0,94199.0,1.91395]
[1734973049127,0.3608,94231.0,94199.0,1.91395]
[1734973049128,0.2858,94264.0,94203.0,0.3605]
[1734973049328,0.1594,94249.0,94229.0,0.3608]
[1734973049525,0.1594,94249.0,94240.0,0.053127]
[1734973050036,0.1594,94249.0,94238.0,0.3608]
[1734973050037,0.053116,94261.0,94248.0,0.3608]
[1734973050240,0.006,94264.0,94248.0,0.3608]
[1734973050440,0.006,94264.0,94263.0,0.053114]
[1734973051435,0.006,94264.0,94259.0,0.3608]
[1734973051736,0.068114,94264.0,94263.0,0.001]
[1734973052032,0.068114,94264.0,94245.0,0.053124]
[1734973052237,0.062114,94264.0,94245.0,0.053124]
[1734973052531,0.007,94249.0,94245.0,0.053124]
[1734973053234,0.007,94249.0,94244.0,0.00159157]
[1734973053632,0.1607,94255.0,94244.0,0.00159157]
[1734973053830,0.1607,94255.0,94245.0,0.053124]
[1734973054228,0.001,94249.0,94245.0,0.053124]
[1734973054826,0.1617,94255.0,94244.0,0.00159157]
[1734973055031,0.1617,94255.0,94253.0,0.05312]
[1734973055032,0.001,94255.0,94253.0,0.05312]
[1734973055228,0.001,94264.0,94253.0,0.05312]
[1734973055632,0.001,94264.0,94255.0,0.053118]
[1734973055934,0.1607,94267.0,94255.0,0.053118]
[1734973057033,0.003,94264.0,94255.0,0.053118]
[1734973057838,0.003,94264.0,94255.0,0.001]
[1734973058132,0.003,94264.0,94244.0,0.01276021]
[1734973058133,0.3608,94260.0,94244.0,0.00159157]
[1734973058335,0.053118,94257.0,94244.0,0.00159157]
[1734973058730,0.053122,94249.0,94244.0,0.00159157]
[1734973058925,0.413921,94252.0,94238.0,0.053128]
[1734973059129,0.1516,94256.0,94237.0,0.3608]
[1734973059330,0.1516,94256.0,94244.0,0.053125]
[1734973059833,0.053122,94250.0,94237.0,0.3608]
[1734973060236,0.053122,94250.0,94237.0,0.3618]
[1734973060437,0.053122,94250.0,94237.0,0.001]
[1734973061238,0.053122,94250.0,94238.0,1.5]
[1734973062130,0.3608,94242.0,94237.0,0.002]
[1734973062335,0.3608,94242.0,94211.0,0.3608]
[1734973062336,0.053133,94231.0,94213.0,0.053142]
[1734973062536,0.3608,94223.0,94214.0,1.5]
[1734973062737,0.053138,94222.0,94214.0,1.5]
[1734973062932,0.05314,94218.0,94214.0,1.5]
[1734973063129,0.053144,94211.0,94206.0,0.00159226]
[1734973063437,0.3608,94215.0,94213.0,0.006]
[1734973064038,0.3608,94215.0,94207.0,1.5]
[1734973064233,0.053142,94214.0,94207.0,1.5]
[1734973064738,0.005,94215.0,94213.0,0.001]
[1734973065329,0.053145,94209.0,94207.0,0.00068]
[1734973065534,0.3608,94214.0,94176.0,0.3608]
[1734973065535,0.3608,94213.0,94176.0,0.3608]
[1734973065734,0.3608,94213.0,94164.0,0.3608]
[1734973065735,0.3608,94180.0,94164.0,0.37215331]
[1734973065931,0.3608,94180.0,94168.0,0.053168]
[1734973066443,0.3608,94180.0,94169.0,1.27]
[1734973066835,0.3608,94180.0,94176.0,0.002]
[1734973067237,0.3608,94180.0,94169.0,1.27]
[1734973067441,0.3618,94180.0,94169.0,1.27]
[1734973067743,0.053166,94171.0,94169.0,1.27]
[1734973068056,0.3608,94170.0,94157.0,0.00159284]
[1734973068439,0.3608,94170.0,94169.0,0.002]
[1734973069051,0.3608,94170.0,94157.0,0.00159284]
[1734973069353,0.053173,94158.0,94157.0,0.00559284]
[1734973069750,0.3608,94161.0,94157.0,0.004]
[1734973069945,0.05317,94164.0,94157.0,0.004]
[1734973070147,0.05317,94164.0,94157.0,0.008]
[1734973070640,0.053173,94160.0,94157.0,0.004]
[1734973070847,0.003,94158.0,94157.0,0.004]
[1734973071053,0.001,94170.0,94169.0,0.053167]
[1734973071350,0.00060001,94180.0,94176.0,0.053163]
[1734973071546,0.68009331,94189.0,94176.0,0.053163]
[1734973071747,0.3186933,94189.0,94188.0,1.27]
[1734973071954,0.6794933,94189.0,94188.0,1.27]
[1734973072750,0.6794933,94189.0,94169.0,0.002]
[1734973072955,0.053167,94170.0,94169.0,0.002]
[1734973073348,0.053167,94170.0,94169.0,1.272]
[1734973073842,0.053167,94170.0,94169.0,0.002]
[1734973074044,0.053167,94170.0,94169.0,0.005]
[1734973074356,0.053167,94170.0,94169.0,1.275]
[1734973074554,0.053167,94170.0,94169.0,1.27]
[1734973074742,0.005,94170.0,94148.0,0.3608]
[1734973074944,0.20566883,94170.0,94148.0,0.3608]
[1734973075257,0.053169,94166.0,94150.0,0.053178]
[1734973075448,0.007,94170.0,94148.0,0.3608]
[1734973075644,0.053174,94158.0,94148.0,0.3608]
[1734973076141,0.053174,94158.0,94148.0,0.3648]
[1734973076547,0.1532,94162.0,94148.0,0.3648]
[1734973076740,0.1532,94162.0,94148.0,0.3658]
[1734973077053,0.206371,94162.0,94148.0,0.3658]
[1734973077247,0.206371,94162.0,94148.0,0.3648]
[1734973077450,0.053172,94161.0,94148.0,0.3658]
[1734973077958,0.053172,94161.0,94148.0,0.3628]
[1734973078251,0.1532,94162.0,94148.0,0.3628]
[1734973078458,0.053179,94149.0,94148.0,0.002]
[1734973078647,0.053179,94149.0,94148.0,0.001]
[1734973078951,0.05318,94146.0,94115.0,0.3608]
[1734973079252,0.18342671,94130.0,94115.0,0.42549548]
[1734973079443,0.05319,94129.0,94115.0,0.42549548]
[1734973079649,0.13023771,94130.0,94115.0,0.42549548]
[1734973079650,0.053191,94128.0,94115.0,0.42549548]
[1734973079854,0.3608,94123.0,94115.0,0.01149848]